[Event "Titled Tuesday Blitz June 1 2021"]
[White "NovakCabarkapa"]
[Black "Herrera Reyes, Jose Antonio"]
[BlackFideId "2274914"]
[WhiteElo "2795"]
[BlackElo "2370"]
[Result "1-0"]
[Round "08"]
[TimeControl "180+1"]
[Date "2021.06.01"]
[WhiteClock "0:00:05"]
[BlackClock "0:00:02"]

1. h4 {[%clk 0:03:00]}  Nc6 {[%clk 0:02:46]} 2. h5 {[%clk 0:03:00]}  e5 {[%clk 0:02:46]} 3. c3 {[%clk 0:02:58]}  d5 {[%clk 0:02:46]} 4. d4 {[%clk 0:02:58]}  exd4 {[%clk 0:02:45]} 5. cxd4 {[%clk 0:02:58]}  Nf6 {[%clk 0:02:46]} 6. h6 {[%clk 0:02:57]}  g6 {[%clk 0:02:45]} 7. Nc3 {[%clk 0:02:57]}  Bb4 {[%clk 0:02:45]} 8. a3 {[%clk 0:02:57]}  Ba5 {[%clk 0:02:46]} 9. b4 {[%clk 0:02:56]}  Bb6 {[%clk 0:02:46]} 10. Nf3 {[%clk 0:02:55]}  Ne4 {[%clk 0:02:45]} 11. Na4 {[%clk 0:02:45]}  O-O {[%clk 0:02:40]} 12. Bf4 {[%clk 0:02:36]}  Qf6 {[%clk 0:02:38]} 13. Nxb6 {[%clk 0:02:26]}  axb6 {[%clk 0:02:36]} 14. Bxc7 {[%clk 0:02:23]}  g5 {[%clk 0:02:25]} 15. e3 {[%clk 0:02:18]}  g4 {[%clk 0:02:22]} 16. Bf4 {[%clk 0:01:52]}  Re8 {[%clk 0:01:56]} 17. Ne5 {[%clk 0:01:28]}  Nxe5 {[%clk 0:01:53]} 18. dxe5 {[%clk 0:01:28]}  Rxe5 {[%clk 0:01:53]} 19. Qd4 {[%clk 0:01:01]}  Re8 {[%clk 0:01:38]} 20. Qxf6 {[%clk 0:01:00]}  Nxf6 {[%clk 0:01:39]} 21. Bb5 {[%clk 0:00:57]}  Bd7 {[%clk 0:01:39]} 22. Bxd7 {[%clk 0:00:57]}  Nxd7 {[%clk 0:01:39]} 23. Rh5 {[%clk 0:00:56]}  f6 {[%clk 0:01:02]} 24. Rxd5 {[%clk 0:00:54]}  Re7 {[%clk 0:01:02]} 25. Rad1 {[%clk 0:00:49]}  Nf8 {[%clk 0:01:02]} 26. Rd8 {[%clk 0:00:24]}  Re8 {[%clk 0:00:48]} 27. Rxe8 {[%clk 0:00:23]}  Rxe8 {[%clk 0:00:48]} 28. Rd6 {[%clk 0:00:23]}  Re6 {[%clk 0:00:48]} 29. Rd8 {[%clk 0:00:08]}  Kf7 {[%clk 0:00:42]} 30. Rb8 {[%clk 0:00:08]}  Rc6 {[%clk 0:00:19]} 31. Rxb7+ {[%clk 0:00:08]}  Ke6 {[%clk 0:00:19]} 32. Bc7 {[%clk 0:00:05]}  Rc1+ {[%clk 0:00:17]} 33. Kd2 {[%clk 0:00:05]}  Ra1 {[%clk 0:00:18]} 34. Rxb6+ {[%clk 0:00:06]}  Kf5 {[%clk 0:00:18]} 35. Ra6 {[%clk 0:00:06]}  Ra2+ {[%clk 0:00:18]} 36. Kd3 {[%clk 0:00:06]}  Rxf2 {[%clk 0:00:18]} 37. Bd8 {[%clk 0:00:06]}  Kg6 {[%clk 0:00:18]} 38. a4 {[%clk 0:00:05]}  Kxh6 {[%clk 0:00:16]} 39. Rxf6+ {[%clk 0:00:05]}  Rxf6 {[%clk 0:00:16]} 40. Bxf6 {[%clk 0:00:06]}  Kg6 {[%clk 0:00:16]} 41. Be5 {[%clk 0:00:06]}  Nd7 {[%clk 0:00:16]} 42. Bd4 {[%clk 0:00:06]}  h5 {[%clk 0:00:17]} 43. a5 {[%clk 0:00:07]}  h4 {[%clk 0:00:17]} 44. e4 {[%clk 0:00:07]}  h3 {[%clk 0:00:17]} 45. gxh3 {[%clk 0:00:08]}  gxh3 {[%clk 0:00:18]} 46. Bg1 {[%clk 0:00:08]}  Kf6 {[%clk 0:00:18]} 47. a6 {[%clk 0:00:07]}  Ne5+ {[%clk 0:00:12]} 48. Ke2 {[%clk 0:00:04]}  Nc6 {[%clk 0:00:09]} 49. b5 {[%clk 0:00:03]}  Nd4+ {[%clk 0:00:09]} 50. Bxd4+ {[%clk 0:00:03]}  Ke6 {[%clk 0:00:04]} 51. Kf3 {[%clk 0:00:04]}  h2 {[%clk 0:00:02]} 52. Kg2 {[%clk 0:00:05]} 1-0


[Site "https://www.chess.com"]

[Event "Titled Tuesday Blitz June 1 2021"]
[White "Perez Ponsa, Federico"]
[Black "Bluebaum, Matthias"]
[WhiteFideId "117927"]
[BlackFideId "24651516"]
[WhiteElo "2672"]
[BlackElo "2685"]
[Result "1-0"]
[Round "08"]
[TimeControl "180+1"]
[Date "2021.06.01"]
[WhiteClock "0:00:03"]
[BlackClock "0:00:27"]

1. e4 {[%clk 0:02:52]}  c6 {[%clk 0:02:59]} 2. d4 {[%clk 0:02:52]}  d5 {[%clk 0:03:00]} 3. exd5 {[%clk 0:02:50]}  cxd5 {[%clk 0:03:01]} 4. Bd3 {[%clk 0:02:51]}  Nc6 {[%clk 0:03:01]} 5. c3 {[%clk 0:02:51]}  Qc7 {[%clk 0:03:01]} 6. Ne2 {[%clk 0:02:47]}  Bg4 {[%clk 0:03:00]} 7. O-O {[%clk 0:02:43]}  e6 {[%clk 0:03:00]} 8. Qe1 {[%clk 0:02:43]}  g6 {[%clk 0:03:00]} 9. Ng3 {[%clk 0:02:35]}  Be7 {[%clk 0:02:56]} 10. f3 {[%clk 0:02:20]}  Bf5 {[%clk 0:02:56]} 11. Nxf5 {[%clk 0:02:16]}  gxf5 {[%clk 0:02:55]} 12. Qg3 {[%clk 0:02:00]}  Qxg3 {[%clk 0:02:47]} 13. hxg3 {[%clk 0:02:01]}  Nf6 {[%clk 0:02:48]} 14. Kf2 {[%clk 0:01:59]}  Rg8 {[%clk 0:02:46]} 15. Rh1 {[%clk 0:01:53]}  Rc8 {[%clk 0:02:46]} 16. Bf4 {[%clk 0:01:48]}  Kd7 {[%clk 0:02:41]} 17. Nd2 {[%clk 0:01:48]}  Bd6 {[%clk 0:02:40]} 18. Rh6 {[%clk 0:01:44]}  Rg6 {[%clk 0:02:40]} 19. Rah1 {[%clk 0:01:42]}  Rcg8 {[%clk 0:02:40]} 20. Rxg6 {[%clk 0:01:41]}  hxg6 {[%clk 0:02:39]} 21. Bg5 {[%clk 0:01:33]}  Be7 {[%clk 0:02:39]} 22. Bxf6 {[%clk 0:01:22]}  Bxf6 {[%clk 0:02:40]} 23. f4 {[%clk 0:01:23]}  Ne7 {[%clk 0:02:34]} 24. Nf3 {[%clk 0:01:21]}  Nc8 {[%clk 0:02:34]} 25. Rh7 {[%clk 0:01:19]}  Nd6 {[%clk 0:02:32]} 26. Ne5+ {[%clk 0:01:16]}  Ke8 {[%clk 0:02:33]} 27. Kf3 {[%clk 0:01:14]}  g5 {[%clk 0:02:32]} 28. g4 {[%clk 0:01:07]}  gxf4 {[%clk 0:02:28]} 29. gxf5 {[%clk 0:01:07]}  Rg3+ {[%clk 0:02:26]} 30. Kxf4 {[%clk 0:01:03]}  Rxg2 {[%clk 0:02:18]} 31. fxe6 {[%clk 0:00:58]}  Bg7 {[%clk 0:01:30]} 32. exf7+ {[%clk 0:00:51]}  Nxf7 {[%clk 0:01:28]} 33. Nxf7 {[%clk 0:00:22]}  Kxf7 {[%clk 0:01:29]} 34. Rh5 {[%clk 0:00:22]}  Ke6 {[%clk 0:01:24]} 35. Rxd5 {[%clk 0:00:13]}  Rxb2 {[%clk 0:01:18]} 36. Bc4 {[%clk 0:00:10]}  Ke7 {[%clk 0:01:12]} 37. Rf5 {[%clk 0:00:06]}  Bf6 {[%clk 0:01:12]} 38. Ke4 {[%clk 0:00:06]}  a6 {[%clk 0:01:11]} 39. Rf3 {[%clk 0:00:05]}  b5 {[%clk 0:01:09]} 40. Bb3 {[%clk 0:00:05]}  a5 {[%clk 0:01:04]} 41. Rf5 {[%clk 0:00:02]}  a4 {[%clk 0:01:03]} 42. Rxb5 {[%clk 0:00:02]}  axb3 {[%clk 0:01:02]} 43. axb3 {[%clk 0:00:03]}  Bh4 {[%clk 0:01:01]} 44. Kd3 {[%clk 0:00:02]}  Kd7 {[%clk 0:01:01]} 45. Rh5 {[%clk 0:00:02]}  Be7 {[%clk 0:01:01]} 46. Rd5+ {[%clk 0:00:02]}  Kc6 {[%clk 0:01:02]} 47. Re5 {[%clk 0:00:03]}  Bd6 {[%clk 0:01:02]} 48. Re2 {[%clk 0:00:02]}  Rxb3 {[%clk 0:01:02]} 49. Kc4 {[%clk 0:00:03]}  Ra3 {[%clk 0:01:03]} 50. Kd3 {[%clk 0:00:03]}  Kd5 {[%clk 0:01:02]} 51. Rc2 {[%clk 0:00:04]}  Bb4 {[%clk 0:00:59]} 52. Kd2 {[%clk 0:00:04]}  Ba5 {[%clk 0:00:59]} 53. Kd3 {[%clk 0:00:05]}  Rb3 {[%clk 0:01:00]} 54. Rc1 {[%clk 0:00:05]}  Ra3 {[%clk 0:00:58]} 55. Rc2 {[%clk 0:00:05]}  Bd8 {[%clk 0:00:58]} 56. Rh2 {[%clk 0:00:04]}  Ba5 {[%clk 0:00:48]} 57. Rh5+ {[%clk 0:00:05]}  Kc6 {[%clk 0:00:49]} 58. Rc5+ {[%clk 0:00:05]}  Kd6 {[%clk 0:00:49]} 59. Rc4 {[%clk 0:00:05]}  Ra1 {[%clk 0:00:48]} 60. Kc2 {[%clk 0:00:05]}  Rg1 {[%clk 0:00:47]} 61. Rc5 {[%clk 0:00:05]}  Bb6 {[%clk 0:00:47]} 62. Rb5 {[%clk 0:00:05]}  Kc6 {[%clk 0:00:47]} 63. Rf5 {[%clk 0:00:05]}  Rg3 {[%clk 0:00:47]} 64. Rf6+ {[%clk 0:00:04]}  Kb5 {[%clk 0:00:47]} 65. Rf8 {[%clk 0:00:03]}  Ba5 {[%clk 0:00:44]} 66. Rc8 {[%clk 0:00:04]}  Kb6 {[%clk 0:00:42]} 67. d5 {[%clk 0:00:04]}  Kb7 {[%clk 0:00:43]} 68. Rc6 {[%clk 0:00:04]}  Bb6 {[%clk 0:00:43]} 69. c4 {[%clk 0:00:04]}  Rg5 {[%clk 0:00:39]} 70. Kd3 {[%clk 0:00:04]}  Rg4 {[%clk 0:00:39]} 71. Kc3 {[%clk 0:00:05]}  Ba5+ {[%clk 0:00:38]} 72. Kb3 {[%clk 0:00:05]}  Rg3+ {[%clk 0:00:37]} 73. Ka4 {[%clk 0:00:05]}  Bc7 {[%clk 0:00:37]} 74. Kb4 {[%clk 0:00:05]}  Rd3 {[%clk 0:00:35]} 75. Re6 {[%clk 0:00:05]}  Rd1 {[%clk 0:00:34]} 76. Re7 {[%clk 0:00:05]}  Kc8 {[%clk 0:00:34]} 77. Rf7 {[%clk 0:00:05]}  Kb7 {[%clk 0:00:26]} 78. Kc5 {[%clk 0:00:03]}  Rd2 {[%clk 0:00:27]} 79. Rd7 {[%clk 0:00:03]}  Rd3 {[%clk 0:00:27]} 80. d6 {[%clk 0:00:03]} 1-0


[Site "https://www.chess.com"]

[Event "Titled Tuesday Blitz June 1 2021"]
[White "Rychagov, Andrey"]
[Black "Paravyan, David"]
[WhiteFideId "4119932"]
[BlackFideId "4194985"]
[WhiteElo "2527"]
[BlackElo "2562"]
[Result "0-1"]
[Round "08"]
[TimeControl "180+1"]
[Date "2021.06.01"]
[WhiteClock "0:00:34"]
[BlackClock "0:01:24"]

1. d4 {[%clk 0:03:00]}  d5 {[%clk 0:03:00]} 2. c4 {[%clk 0:03:00]}  e6 {[%clk 0:03:01]} 3. Nf3 {[%clk 0:03:00]}  Nf6 {[%clk 0:03:01]} 4. Nc3 {[%clk 0:03:00]}  a6 {[%clk 0:03:01]} 5. cxd5 {[%clk 0:02:58]}  exd5 {[%clk 0:03:02]} 6. Bg5 {[%clk 0:02:58]}  Be6 {[%clk 0:03:03]} 7. e3 {[%clk 0:02:58]}  h6 {[%clk 0:03:03]} 8. Bh4 {[%clk 0:02:57]}  Bd6 {[%clk 0:03:02]} 9. Bd3 {[%clk 0:02:56]}  Nbd7 {[%clk 0:03:02]} 10. Bg3 {[%clk 0:02:54]}  Bxg3 {[%clk 0:03:02]} 11. hxg3 {[%clk 0:02:54]}  c6 {[%clk 0:03:03]} 12. Qc2 {[%clk 0:02:51]}  Qe7 {[%clk 0:03:03]} 13. O-O-O {[%clk 0:02:47]}  O-O {[%clk 0:02:58]} 14. Kb1 {[%clk 0:02:47]}  Rac8 {[%clk 0:02:54]} 15. Na4 {[%clk 0:02:39]}  c5 {[%clk 0:02:53]} 16. dxc5 {[%clk 0:02:37]}  b5 {[%clk 0:02:52]} 17. Nc3 {[%clk 0:02:29]}  Nxc5 {[%clk 0:02:52]} 18. Qd2 {[%clk 0:02:00]}  b4 {[%clk 0:02:47]} 19. Ne2 {[%clk 0:02:00]}  Nfe4 {[%clk 0:02:47]} 20. Bxe4 {[%clk 0:01:56]}  Nxe4 {[%clk 0:02:47]} 21. Qe1 {[%clk 0:01:56]}  Bf5 {[%clk 0:02:47]} 22. Ka1 {[%clk 0:01:52]}  b3 {[%clk 0:02:47]} 23. Nfd4 {[%clk 0:01:46]}  Bg6 {[%clk 0:02:45]} 24. Nxb3 {[%clk 0:01:34]}  a5 {[%clk 0:02:36]} 25. f3 {[%clk 0:01:26]}  a4 {[%clk 0:02:34]} 26. Nbd4 {[%clk 0:01:26]}  Nc5 {[%clk 0:02:29]} 27. Nc3 {[%clk 0:01:22]}  Nb3+ {[%clk 0:02:15]} 28. Nxb3 {[%clk 0:01:10]}  axb3 {[%clk 0:02:16]} 29. Rxd5 {[%clk 0:01:09]}  bxa2 {[%clk 0:02:07]} 30. e4 {[%clk 0:01:07]}  f6 {[%clk 0:01:58]} 31. Qd2 {[%clk 0:01:06]}  Bf7 {[%clk 0:01:57]} 32. Rd7 {[%clk 0:01:06]}  Rfd8 {[%clk 0:01:51]} 33. Rd1 {[%clk 0:01:03]}  Rxd7 {[%clk 0:01:50]} 34. Qxd7 {[%clk 0:01:03]}  Qc5 {[%clk 0:01:50]} 35. Qd4 {[%clk 0:00:46]}  Qg5 {[%clk 0:01:46]} 36. g4 {[%clk 0:00:44]}  Kh7 {[%clk 0:01:28]} 37. Qa7 {[%clk 0:00:43]}  Bb3 {[%clk 0:01:25]} 38. Rd7 {[%clk 0:00:34]}  Qc1+ {[%clk 0:01:24]} 0-1


[Site "https://www.chess.com"]

[Event "Titled Tuesday Blitz June 1 2021"]
[White "Sadhwani, Raunak"]
[Black "Kosteniuk, Alexandra"]
[WhiteFideId "35093487"]
[BlackFideId "4128125"]
[WhiteElo "2514"]
[BlackElo "2521"]
[Result "1-0"]
[Round "08"]
[TimeControl "180+1"]
[Date "2021.06.01"]
[WhiteClock "0:01:05"]
[BlackClock "0:00:15"]

1. d4 {[%clk 0:03:00]}  Nf6 {[%clk 0:03:00]} 2. Nf3 {[%clk 0:03:00]}  b6 {[%clk 0:02:59]} 3. Bf4 {[%clk 0:02:59]}  Bb7 {[%clk 0:02:59]} 4. Nc3 {[%clk 0:02:54]}  e6 {[%clk 0:02:52]} 5. e3 {[%clk 0:02:47]}  Be7 {[%clk 0:02:50]} 6. Bd3 {[%clk 0:02:47]}  Nh5 {[%clk 0:02:47]} 7. Bg3 {[%clk 0:02:46]}  d6 {[%clk 0:02:41]} 8. Ne2 {[%clk 0:02:45]}  Nd7 {[%clk 0:02:39]} 9. Nf4 {[%clk 0:02:45]}  Nxg3 {[%clk 0:02:39]} 10. hxg3 {[%clk 0:02:46]}  Nf6 {[%clk 0:02:37]} 11. c3 {[%clk 0:02:43]}  Qd7 {[%clk 0:02:37]} 12. Qc2 {[%clk 0:02:42]}  O-O-O {[%clk 0:02:28]} 13. a4 {[%clk 0:02:40]}  Ng4 {[%clk 0:02:08]} 14. a5 {[%clk 0:02:35]}  Kb8 {[%clk 0:02:04]} 15. axb6 {[%clk 0:02:35]}  cxb6 {[%clk 0:02:01]} 16. Be4 {[%clk 0:02:27]}  g6 {[%clk 0:01:58]} 17. Bxb7 {[%clk 0:02:27]}  Qxb7 {[%clk 0:01:58]} 18. Ra4 {[%clk 0:02:02]}  e5 {[%clk 0:01:49]} 19. Ne2 {[%clk 0:02:01]}  f5 {[%clk 0:01:45]} 20. O-O {[%clk 0:02:00]}  Rd7 {[%clk 0:01:34]} 21. Rfa1 {[%clk 0:01:59]}  Rc8 {[%clk 0:01:16]} 22. Qb3 {[%clk 0:01:53]}  Bd8 {[%clk 0:00:56]} 23. c4 {[%clk 0:01:50]}  h5 {[%clk 0:00:52]} 24. Nc3 {[%clk 0:01:41]}  f4 {[%clk 0:00:50]} 25. gxf4 {[%clk 0:01:34]}  exf4 {[%clk 0:00:50]} 26. exf4 {[%clk 0:01:35]}  Nf6 {[%clk 0:00:46]} 27. d5 {[%clk 0:01:31]}  a5 {[%clk 0:00:29]} 28. Nd4 {[%clk 0:01:31]}  h4 {[%clk 0:00:23]} 29. Nc6+ {[%clk 0:01:31]}  Ka8 {[%clk 0:00:24]} 30. Nb5 {[%clk 0:01:26]}  Rxc6 {[%clk 0:00:22]} 31. dxc6 {[%clk 0:01:24]}  Qxc6 {[%clk 0:00:23]} 32. Qh3 {[%clk 0:01:14]}  Ne4 {[%clk 0:00:16]} 33. Qf3 {[%clk 0:01:05]}  Kb7 {[%clk 0:00:15]} 34. Nd4 {[%clk 0:01:05]} 1-0


[Site "https://www.chess.com"]

[Event "Titled Tuesday Blitz June 1 2021"]
[White "Sumets, Andrey"]
[Black "Cunjalo, Faris"]
[WhiteFideId "14105500"]
[BlackFideId "14410710"]
[WhiteElo "2619"]
[BlackElo "2234"]
[Result "0-1"]
[Round "08"]
[TimeControl "180+1"]
[Date "2021.06.01"]
[WhiteClock "0:00:01"]
[BlackClock "0:00:09"]

1. d4 {[%clk 0:02:48]}  f5 {[%clk 0:02:55]} 2. g3 {[%clk 0:02:47]}  Nf6 {[%clk 0:02:47]} 3. Bg2 {[%clk 0:02:48]}  g6 {[%clk 0:02:47]} 4. c4 {[%clk 0:02:44]}  Bg7 {[%clk 0:02:47]} 5. Nh3 {[%clk 0:02:41]}  d6 {[%clk 0:02:40]} 6. d5 {[%clk 0:02:40]}  O-O {[%clk 0:02:35]} 7. O-O {[%clk 0:02:39]}  Na6 {[%clk 0:02:36]} 8. Nc3 {[%clk 0:02:38]}  Nc5 {[%clk 0:02:35]} 9. Be3 {[%clk 0:02:37]}  Ng4 {[%clk 0:01:50]} 10. Bd4 {[%clk 0:02:34]}  Bh6 {[%clk 0:01:50]} 11. Nf4 {[%clk 0:02:22]}  e5 {[%clk 0:01:30]} 12. dxe6 {[%clk 0:02:19]}  Bxf4 {[%clk 0:01:31]} 13. Bxc5 {[%clk 0:02:09]}  dxc5 {[%clk 0:01:30]} 14. Qxd8 {[%clk 0:01:48]}  Rxd8 {[%clk 0:01:30]} 15. gxf4 {[%clk 0:01:34]}  Bxe6 {[%clk 0:01:07]} 16. Bxb7 {[%clk 0:01:30]}  Rab8 {[%clk 0:01:07]} 17. Bd5 {[%clk 0:01:31]}  Bxd5 {[%clk 0:01:07]} 18. Nxd5 {[%clk 0:01:31]}  Rxb2 {[%clk 0:01:00]} 19. h3 {[%clk 0:01:16]}  Nh6 {[%clk 0:00:59]} 20. e3 {[%clk 0:01:15]}  Nf7 {[%clk 0:00:50]} 21. Rfb1 {[%clk 0:01:13]}  Rdb8 {[%clk 0:00:49]} 22. Rxb2 {[%clk 0:01:05]}  Rxb2 {[%clk 0:00:50]} 23. Nxc7 {[%clk 0:01:02]}  Nd6 {[%clk 0:00:50]} 24. Ne6 {[%clk 0:01:02]}  Ne4 {[%clk 0:00:44]} 25. Rd1 {[%clk 0:00:52]}  Rxa2 {[%clk 0:00:37]} 26. Rd7 {[%clk 0:00:49]}  Nxf2 {[%clk 0:00:30]} 27. h4 {[%clk 0:00:26]}  Ng4 {[%clk 0:00:25]} 28. Rg7+ {[%clk 0:00:23]}  Kh8 {[%clk 0:00:25]} 29. Re7 {[%clk 0:00:15]}  Kg8 {[%clk 0:00:25]} 30. Rg7+ {[%clk 0:00:14]}  Kh8 {[%clk 0:00:25]} 31. Re7 {[%clk 0:00:15]}  h6 {[%clk 0:00:21]} 32. Re8+ {[%clk 0:00:12]}  Kh7 {[%clk 0:00:22]} 33. Re7+ {[%clk 0:00:13]}  Kg8 {[%clk 0:00:22]} 34. Rg7+ {[%clk 0:00:13]}  Kh8 {[%clk 0:00:23]} 35. Rxg6 {[%clk 0:00:13]}  Ra6 {[%clk 0:00:19]} 36. h5 {[%clk 0:00:09]}  Rd6 {[%clk 0:00:11]} 37. e4 {[%clk 0:00:05]}  fxe4 {[%clk 0:00:11]} 38. f5 {[%clk 0:00:04]}  Ne5 {[%clk 0:00:09]} 39. Rxh6+ {[%clk 0:00:01]}  Kg8 {[%clk 0:00:09]} 0-1


[Site "https://www.chess.com"]

[Event "Titled Tuesday Blitz June 1 2021"]
[White "Zhigalko, Sergei"]
[Black "Rakotomaharo, Fy Antenaina"]
[WhiteFideId "13502956"]
[BlackFideId "13100050"]
[WhiteElo "2662"]
[BlackElo "2378"]
[Result "0-1"]
[Round "08"]
[TimeControl "180+1"]
[Date "2021.06.01"]
[WhiteClock "0:00:01"]
[BlackClock "0:00:04"]

1. e4 {[%clk 0:03:00]}  e5 {[%clk 0:03:00]} 2. Nf3 {[%clk 0:03:00]}  Nc6 {[%clk 0:03:00]} 3. Bc4 {[%clk 0:03:01]}  Bc5 {[%clk 0:02:59]} 4. b4 {[%clk 0:03:01]}  Bxb4 {[%clk 0:02:58]} 5. c3 {[%clk 0:03:02]}  Be7 {[%clk 0:02:59]} 6. d4 {[%clk 0:03:01]}  Na5 {[%clk 0:02:58]} 7. Bd3 {[%clk 0:03:02]}  d6 {[%clk 0:02:58]} 8. dxe5 {[%clk 0:03:02]}  dxe5 {[%clk 0:02:58]} 9. Nxe5 {[%clk 0:03:02]}  Nf6 {[%clk 0:02:58]} 10. Qc2 {[%clk 0:03:03]}  O-O {[%clk 0:02:58]} 11. O-O {[%clk 0:03:03]}  c6 {[%clk 0:02:54]} 12. Nf3 {[%clk 0:02:56]}  h6 {[%clk 0:02:52]} 13. Bf4 {[%clk 0:02:45]}  Bg4 {[%clk 0:02:29]} 14. Nbd2 {[%clk 0:02:44]}  b5 {[%clk 0:02:30]} 15. h3 {[%clk 0:02:43]}  Bd7 {[%clk 0:02:24]} 16. c4 {[%clk 0:02:32]}  Nb7 {[%clk 0:02:05]} 17. e5 {[%clk 0:02:29]}  Ne8 {[%clk 0:02:00]} 18. Rfd1 {[%clk 0:02:23]}  Nc5 {[%clk 0:01:58]} 19. Bh7+ {[%clk 0:02:01]}  Kh8 {[%clk 0:01:58]} 20. Be3 {[%clk 0:01:54]}  f5 {[%clk 0:01:35]} 21. Bxc5 {[%clk 0:01:15]}  Bxc5 {[%clk 0:01:34]} 22. Nb3 {[%clk 0:01:16]}  Bb6 {[%clk 0:01:18]} 23. e6 {[%clk 0:00:34]}  Kxh7 {[%clk 0:01:14]} 24. exd7 {[%clk 0:00:34]}  Nf6 {[%clk 0:01:04]} 25. Qxf5+ {[%clk 0:00:33]}  g6 {[%clk 0:00:58]} 26. Qe6 {[%clk 0:00:33]}  bxc4 {[%clk 0:00:53]} 27. Qxc4 {[%clk 0:00:32]}  Qc7 {[%clk 0:00:47]} 28. Qe6 {[%clk 0:00:25]}  Rad8 {[%clk 0:00:33]} 29. Qe7+ {[%clk 0:00:12]}  Kg8 {[%clk 0:00:29]} 30. Qe6+ {[%clk 0:00:04]}  Kg7 {[%clk 0:00:26]} 31. Rac1 {[%clk 0:00:04]}  Rxd7 {[%clk 0:00:15]} 32. Rxd7+ {[%clk 0:00:04]}  Qxd7 {[%clk 0:00:15]} 33. Qxd7+ {[%clk 0:00:05]}  Nxd7 {[%clk 0:00:15]} 34. Rxc6 {[%clk 0:00:06]}  Re8 {[%clk 0:00:13]} 35. Kf1 {[%clk 0:00:05]}  Ne5 {[%clk 0:00:11]} 36. Nxe5 {[%clk 0:00:04]}  Rxe5 {[%clk 0:00:11]} 37. g3 {[%clk 0:00:05]}  h5 {[%clk 0:00:09]} 38. h4 {[%clk 0:00:05]}  Re4 {[%clk 0:00:09]} 39. Rc2 {[%clk 0:00:04]}  Ra4 {[%clk 0:00:09]} 40. Nd2 {[%clk 0:00:04]}  Rb4 {[%clk 0:00:07]} 41. Nf3 {[%clk 0:00:04]}  a5 {[%clk 0:00:04]} 42. Ng5 {[%clk 0:00:03]}  a4 {[%clk 0:00:04]} 43. Rc6 {[%clk 0:00:03]}  Rb2 {[%clk 0:00:03]} 44. Ne4 {[%clk 0:00:02]}  a3 {[%clk 0:00:03]} 45. Rc3 {[%clk 0:00:01]}  Rxa2 {[%clk 0:00:03]} 46. Rb3 {[%clk 0:00:02]}  Ra1+ {[%clk 0:00:03]} 47. Kg2 {[%clk 0:00:02]}  Bd4 {[%clk 0:00:03]} 48. Rb7+ {[%clk 0:00:03]}  Kf8 {[%clk 0:00:03]} 49. Rb8+ {[%clk 0:00:02]}  Ke7 {[%clk 0:00:03]} 50. Ra8 {[%clk 0:00:03]}  Bb2 {[%clk 0:00:03]} 51. Nd2 {[%clk 0:00:03]}  Rc1 {[%clk 0:00:02]} 52. Nb3 {[%clk 0:00:03]}  Rc2 {[%clk 0:00:02]} 53. Kh3 {[%clk 0:00:01]}  Kd6 {[%clk 0:00:02]} 54. Kg2 {[%clk 0:00:01]}  Kd5 {[%clk 0:00:02]} 55. Kf3 {[%clk 0:00:01]}  Kc4 {[%clk 0:00:02]} 56. Na5+ {[%clk 0:00:01]}  Kc3 {[%clk 0:00:03]} 57. Nb7 {[%clk 0:00:01]}  Kd2 {[%clk 0:00:03]} 58. Na5 {[%clk 0:00:01]}  Kc1 {[%clk 0:00:03]} 59. Nb3+ {[%clk 0:00:01]}  Kb1 {[%clk 0:00:04]} 0-1


[Site "https://www.chess.com"]